[Event "*** MasterClass Titled Tuesday Blitz"]
[Site "Chess.com"]
[Date "2017.10.03"]
[Round "1"]
[White "Iball95"]
[Black "Superfelix"]
[Result "1-0"]
[WhiteElo "2527"]
[BlackElo "2257"]
[TimeControl "180+2"]
[EndTime "13:12:05 PDT"]
[Termination "Iball95 won by checkmate"]

1. e4 {[%clk 0:03:01.9]} 1... c6 {[%clk 0:02:59.9]} 2. Nc3 {[%clk 0:03:02.3]}
2... g6 {[%clk 0:03:00.2]} 3. d4 {[%clk 0:03:02.7]} 3... d5 {[%clk 0:02:54.1]}
4. Nf3 {[%clk 0:03:02.3]} 4... dxe4 {[%clk 0:02:55]} 5. Nxe4 {[%clk 0:03:04.2]}
5... Nf6 {[%clk 0:02:56.7]} 6. Nxf6+ {[%clk 0:03:04.8]} 6... exf6 {[%clk
0:02:58.6]} 7. Bc4 {[%clk 0:03:06.2]} 7... Bg7 {[%clk 0:02:59.8]} 8. Qe2+ {[%clk
0:03:05.4]} 8... Qe7 {[%clk 0:03:00.7]} 9. Qxe7+ {[%clk 0:03:06.8]} 9... Kxe7
{[%clk 0:03:02.6]} 10. O-O {[%clk 0:03:07.8]} 10... Be6 {[%clk 0:03:01.5]} 11.
Re1 {[%clk 0:03:08.8]} 11... Kd7 {[%clk 0:02:59.1]} 12. Bb3 {[%clk 0:03:04.7]}
12... a5 {[%clk 0:02:59.3]} 13. Nd2 {[%clk 0:02:59.7]} 13... a4 {[%clk
0:02:52.1]} 14. Bxe6+ {[%clk 0:03:00.2]} 14... fxe6 {[%clk 0:02:54]} 15. Nc4
{[%clk 0:03:01.9]} 15... Ra6 {[%clk 0:02:51.9]} 16. Bd2 {[%clk 0:02:57.3]} 16...
b5 {[%clk 0:02:52.9]} 17. Ne3 {[%clk 0:02:56.7]} 17... Bh6 {[%clk 0:02:48.1]}
18. Rad1 {[%clk 0:02:50.7]} 18... Bxe3 {[%clk 0:02:43.1]} 19. Rxe3 {[%clk
0:02:43.8]} 19... Re8 {[%clk 0:02:43.4]} 20. Bb4 {[%clk 0:02:44.4]} 20... Ra8
{[%clk 0:02:41.4]} 21. Rh3 {[%clk 0:02:27.1]} 21... h5 {[%clk 0:02:41.3]} 22.
Rf3 {[%clk 0:02:22.3]} 22... f5 {[%clk 0:02:41.5]} 23. Rg3 {[%clk 0:02:21.8]}
23... Rg8 {[%clk 0:02:41]} 24. Re1 {[%clk 0:02:22.1]} 24... Na6 {[%clk
0:02:41.4]} 25. Bd2 {[%clk 0:02:21.9]} 25... Nc7 {[%clk 0:02:41.3]} 26. Rge3
{[%clk 0:02:17]} 26... Rae8 {[%clk 0:02:40.5]} 27. Re5 {[%clk 0:02:16.8]} 27...
g5 {[%clk 0:02:37]} 28. Kf1 {[%clk 0:02:14]} 28... Nd5 {[%clk 0:02:36.6]} 29.
Ke2 {[%clk 0:02:00.7]} 29... Nf6 {[%clk 0:02:24.7]} 30. f3 {[%clk 0:01:58.9]}
30... h4 {[%clk 0:02:21.6]} 31. b3 {[%clk 0:01:55.5]} 31... axb3 {[%clk
0:02:21.4]} 32. axb3 {[%clk 0:01:57.4]} 32... g4 {[%clk 0:02:18.2]} 33. Ra1
{[%clk 0:01:52]} 33... Ra8 {[%clk 0:02:15.1]} 34. Rxa8 {[%clk 0:01:50.7]} 34...
Rxa8 {[%clk 0:02:17]} 35. Bg5 {[%clk 0:01:51.8]} 35... Nd5 {[%clk 0:02:12.8]}
36. fxg4 {[%clk 0:01:42.8]} 36... fxg4 {[%clk 0:02:14.7]} 37. Bxh4 {[%clk
0:01:31.2]} 37... Ra2 {[%clk 0:02:15.2]} 38. Kd1 {[%clk 0:01:32.1]} 38... Ra1+
{[%clk 0:02:13.8]} 39. Kd2 {[%clk 0:01:32.2]} 39... Rg1 {[%clk 0:02:08.7]} 40.
Re2 {[%clk 0:01:26.4]} 40... Nf4 {[%clk 0:02:05.8]} 41. Rf2 {[%clk 0:01:26.1]}
41... Nxg2 {[%clk 0:01:58.8]} 42. Bg3 {[%clk 0:01:24.2]} 42... Ne1 {[%clk
0:01:58.2]} 43. Rf7+ {[%clk 0:01:23.9]} 43... Ke8 {[%clk 0:01:56.4]} 44. Rc7
{[%clk 0:01:21.6]} 44... Nf3+ {[%clk 0:01:55.1]} 45. Ke3 {[%clk 0:01:22.8]}
45... Rd1 {[%clk 0:01:46.7]} 46. Rxc6 {[%clk 0:01:23.7]} 46... Nxd4 {[%clk
0:01:47.5]} 47. Rc5 {[%clk 0:01:14.8]} 47... Kf7 {[%clk 0:01:37]} 48. Be5 {[%clk
0:01:10.8]} 48... Nf5+ {[%clk 0:01:28.2]} 49. Kf4 {[%clk 0:01:10.2]} 49... Rd2
{[%clk 0:01:02.5]} 50. Kg5 {[%clk 0:00:50.7]} 50... Rd7 {[%clk 0:00:42]} 51.
Rxb5 {[%clk 0:00:43.4]} 51... Ne3 {[%clk 0:00:41.7]} 52. Rc5 {[%clk 0:00:40.2]}
52... Rd2 {[%clk 0:00:38.3]} 53. Bf4 {[%clk 0:00:36.5]} 53... Rxc2 {[%clk
0:00:36.5]} 54. Bxe3 {[%clk 0:00:37]} 54... Rxh2 {[%clk 0:00:37.6]} 55. Kxg4
{[%clk 0:00:37.6]} 55... Rb2 {[%clk 0:00:38.4]} 56. Rb5 {[%clk 0:00:37.8]} 56...
Ke7 {[%clk 0:00:36.3]} 57. Kf4 {[%clk 0:00:38.1]} 57... Kd6 {[%clk 0:00:37]} 58.
Ke4 {[%clk 0:00:39.3]} 58... Kc6 {[%clk 0:00:35.4]} 59. Rc5+ {[%clk 0:00:40.3]}
59... Kd6 {[%clk 0:00:36.2]} 60. Rc3 {[%clk 0:00:41.2]} 60... e5 {[%clk
0:00:37]} 61. Rd3+ {[%clk 0:00:40.7]} 61... Ke6 {[%clk 0:00:37.5]} 62. Rc3
{[%clk 0:00:42.1]} 62... Kd6 {[%clk 0:00:38.2]} 63. Kd3 {[%clk 0:00:42.8]} 63...
Kd5 {[%clk 0:00:37.9]} 64. Rc5+ {[%clk 0:00:43.9]} 64... Kd6 {[%clk 0:00:39.2]}
65. Rb5 {[%clk 0:00:45.2]} 65... Rb1 {[%clk 0:00:36.8]} 66. Kc4 {[%clk 0:00:39]}
66... Re1 {[%clk 0:00:37.2]} 67. Bc5+ {[%clk 0:00:39.9]} 67... Ke6 {[%clk
0:00:36.3]} 68. Rb6+ {[%clk 0:00:39.9]} 68... Kd7 {[%clk 0:00:37.6]} 69. b4
{[%clk 0:00:40.1]} 69... e4 {[%clk 0:00:39]} 70. Rd6+ {[%clk 0:00:40.1]} 70...
Kc7 {[%clk 0:00:38.7]} 71. Re6 {[%clk 0:00:41.2]} 71... Kd7 {[%clk 0:00:38.7]}
72. Re7+ {[%clk 0:00:42.1]} 72... Kd8 {[%clk 0:00:40.2]} 73. Re5 {[%clk
0:00:42.4]} 73... Kd7 {[%clk 0:00:32.6]} 74. Kd5 {[%clk 0:00:43.3]} 74... e3
{[%clk 0:00:33.3]} 75. Rxe3 {[%clk 0:00:42.9]} 75... Rd1+ {[%clk 0:00:32.9]} 76.
Kc4 {[%clk 0:00:43.4]} 76... Rc1+ {[%clk 0:00:33.7]} 77. Rc3 {[%clk 0:00:44.9]}
77... Rh1 {[%clk 0:00:33.8]} 78. Kb5 {[%clk 0:00:45.9]} 78... Kc8 {[%clk
0:00:35.7]} 79. Rg3 {[%clk 0:00:43.1]} 79... Kb7 {[%clk 0:00:37.6]} 80. Rg7+
{[%clk 0:00:43.1]} 80... Ka8 {[%clk 0:00:39.1]} 81. Kc6 {[%clk 0:00:40]} 81...
Rh6+ {[%clk 0:00:38.3]} 82. Kb5 {[%clk 0:00:39.5]} 82... Re6 {[%clk 0:00:37.5]}
83. Bb6 {[%clk 0:00:40.3]} 83... Re5+ {[%clk 0:00:37]} 84. Ka6 {[%clk
0:00:40.7]} 84... Re8 {[%clk 0:00:38.2]} 85. b5 {[%clk 0:00:36.9]} 85... Rc8
{[%clk 0:00:27.4]} 86. Ba5 {[%clk 0:00:30.6]} 86... Re8 {[%clk 0:00:26.4]} 87.
b6 {[%clk 0:00:31.1]} 87... Rf8 {[%clk 0:00:21.8]} 88. b7+ {[%clk 0:00:32]}
88... Kb8 {[%clk 0:00:23.2]} 89. Bc7# {[%clk 0:00:33.6]} 1-0

[Event "*** MasterClass Titled Tuesday Blitz"]
[Site "Chess.com"]
[Date "2017.10.03"]
[Round "1"]
[White "Cruel_Yaro"]
[Black "AdrianaNikolova"]
[Result "1-0"]
[WhiteElo "2689"]
[BlackElo "2394"]
[TimeControl "180+2"]
[EndTime "13:13:56 PDT"]
[Termination "Cruel_Yaro won by resignation"]

1. a3 {[%clk 0:03:01.9]} 1... d5 {[%clk 0:03:00.3]} 2. e3 {[%clk 0:03:02.5]}
2... Nf6 {[%clk 0:03:01.4]} 3. d4 {[%clk 0:03:02.3]} 3... Bf5 {[%clk 0:02:56.8]}
4. c4 {[%clk 0:03:02.1]} 4... c6 {[%clk 0:02:55.8]} 5. Nc3 {[%clk 0:03:03]} 5...
e6 {[%clk 0:02:55.9]} 6. Nf3 {[%clk 0:03:01]} 6... Nbd7 {[%clk 0:02:51.7]} 7.
Nh4 {[%clk 0:03:01.6]} 7... Bg4 {[%clk 0:02:51.5]} 8. f3 {[%clk 0:03:01.2]} 8...
Bh5 {[%clk 0:02:52.1]} 9. Qb3 {[%clk 0:02:49]} 9... dxc4 {[%clk 0:01:56.8]} 10.
Qxb7 {[%clk 0:02:43.4]} 10... Nd5 {[%clk 0:01:52.7]} 11. g3 {[%clk 0:02:40.5]}
11... Be7 {[%clk 0:01:36.7]} 12. Be2 {[%clk 0:02:03.1]} 12... Bxh4 {[%clk
0:01:35]} 13. gxh4 {[%clk 0:01:56.5]} 13... Qxh4+ {[%clk 0:01:36.8]} 14. Kd1
{[%clk 0:01:57.1]} 14... Rb8 {[%clk 0:01:22.8]} 15. Qxc6 {[%clk 0:01:55.9]}
15... Nb6 {[%clk 0:01:07.5]} 16. Qd6 {[%clk 0:01:51]} 16... e5 {[%clk
0:00:42.9]} 17. Bd2 {[%clk 0:01:32.5]} 17... Rd8 {[%clk 0:00:37.7]} 18. d5
{[%clk 0:01:29]} 18... Nc8 {[%clk 0:00:23]} 19. Qb4 {[%clk 0:01:27.4]} 19... Ne7
{[%clk 0:00:23.8]} 20. Rf1 {[%clk 0:01:17.6]} 20... O-O {[%clk 0:00:22.7]} 21.
Qxc4 {[%clk 0:01:16.8]} 21... Qh3 {[%clk 0:00:22.1]} 22. e4 {[%clk 0:01:14.1]}
22... Nb6 {[%clk 0:00:14.1]} 23. Qc5 {[%clk 0:01:13.3]} 23... Ng6 {[%clk
0:00:12.7]} 24. Qf2 {[%clk 0:01:13.1]} 24... Nf4 {[%clk 0:00:11.9]} 25. Bxf4
{[%clk 0:01:08.3]} 25... exf4 {[%clk 0:00:13.8]} 26. Rg1 {[%clk 0:01:09]} 26...
Bg6 {[%clk 0:00:12.3]} 27. a4 {[%clk 0:00:51.5]} 27... f5 {[%clk 0:00:10.5]} 28.
a5 {[%clk 0:00:52.3]} 28... Nd7 {[%clk 0:00:11.1]} 29. exf5 {[%clk 0:00:41.7]}
29... Qxf5 {[%clk 0:00:11.1]} 30. Ke1 {[%clk 0:00:41.1]} 30... Ne5 {[%clk
0:00:11.3]} 31. Kf1 {[%clk 0:00:41]} 31... Rfe8 {[%clk 0:00:11.8]} 32. Kg2
{[%clk 0:00:41.4]} 32... Nd3 {[%clk 0:00:10.6]} 33. Bxd3 {[%clk 0:00:41.4]}
33... Qxd3 {[%clk 0:00:12.5]} 34. Rge1 {[%clk 0:00:42.3]} 34... Bh5 {[%clk
0:00:11.3]} 35. Rad1 {[%clk 0:00:35.8]} 35... Qf5 {[%clk 0:00:12.3]} 36. Rxe8+
{[%clk 0:00:10.5]} 36... Rxe8 {[%clk 0:00:14.2]} 37. d6 {[%clk 0:00:12.1]} 37...
Qg6+ {[%clk 0:00:15.3]} 38. Kh1 {[%clk 0:00:12.9]} 38... Rd8 {[%clk 0:00:16.8]}
39. d7 {[%clk 0:00:13.5]} 39... Qc6 {[%clk 0:00:18]} 40. Ne4 {[%clk 0:00:14.3]}
40... Rxd7 {[%clk 0:00:16.2]} 41. Rxd7 {[%clk 0:00:14.4]} 41... Qxd7 {[%clk
0:00:18.1]} 42. Kg2 {[%clk 0:00:15.8]} 42... Qf5 {[%clk 0:00:17.1]} 43. Qh4
{[%clk 0:00:15.8]} 43... h6 {[%clk 0:00:15.4]} 44. Qd8+ {[%clk 0:00:15.8]} 44...
Kh7 {[%clk 0:00:16.2]} 45. Qc7 {[%clk 0:00:16.5]} 45... Qg6+ {[%clk 0:00:16.8]}
46. Kf2 {[%clk 0:00:17.6]} 46... a6 {[%clk 0:00:17]} 47. b4 {[%clk 0:00:17.9]}
47... Qf5 {[%clk 0:00:14.3]} 48. Qe7 {[%clk 0:00:11]} 48... Qg6 {[%clk
0:00:12.8]} 49. Qd6 {[%clk 0:00:09.3]} 49... Qf5 {[%clk 0:00:13]} 50. Qe7 {[%clk
0:00:05.9]} 50... Qg6 {[%clk 0:00:12.8]} 51. h4 {[%clk 0:00:07.3]} 51... Qf5
{[%clk 0:00:11.9]} 52. Nd6 {[%clk 0:00:07.1]} 52... Qh3 {[%clk 0:00:09.6]} 53.
Qe4+ {[%clk 0:00:07.8]} 53... Bg6 {[%clk 0:00:10.3]} 54. Qxf4 {[%clk 0:00:09.3]}
54... Qe6 {[%clk 0:00:10.9]} 55. Ne4 {[%clk 0:00:09.7]} 55... Qa2+ {[%clk
0:00:11.5]} 56. Kg3 {[%clk 0:00:10.3]} 56... Qb1 {[%clk 0:00:12.2]} 57. Kh2
{[%clk 0:00:09.3]} 57... Qb2+ {[%clk 0:00:12.1]} 58. Kh3 {[%clk 0:00:10.3]}
58... Qb1 {[%clk 0:00:12.9]} 59. Kg2 {[%clk 0:00:07.7]} 59... Qb2+ {[%clk
0:00:13.6]} 60. Nf2 {[%clk 0:00:09.1]} 60... Bb1 {[%clk 0:00:11.7]} 61. Qc4
{[%clk 0:00:09.5]} 61... Bg6 {[%clk 0:00:10]} 62. Kg3 {[%clk 0:00:09.4]} 62...
Qe5+ {[%clk 0:00:10.8]} 63. Kg2 {[%clk 0:00:10]} 63... Qb2 {[%clk 0:00:12]} 64.
Qxa6 {[%clk 0:00:10.8]} 64... Qxb4 {[%clk 0:00:12.8]} 65. Kg3 {[%clk 0:00:11.7]}
65... Qb8+ {[%clk 0:00:12.4]} 66. Kg2 {[%clk 0:00:11.8]} 66... Qb4 {[%clk
0:00:13.5]} 67. Qb6 {[%clk 0:00:08.9]} 67... Qxh4 {[%clk 0:00:13.5]} 68. a6
{[%clk 0:00:10.1]} 68... Qg5+ {[%clk 0:00:15]} 69. Ng4 {[%clk 0:00:11.2]} 69...
h5 {[%clk 0:00:14.7]} 70. a7 {[%clk 0:00:12]} 70... hxg4 {[%clk 0:00:15.7]} 71.
a8=Q {[%clk 0:00:12.3]} 71... gxf3+ {[%clk 0:00:15.3]} 72. Kxf3 {[%clk
0:00:13.3]} 72... Bh5+ {[%clk 0:00:15.3]} 73. Kf2 {[%clk 0:00:14.2]} 73... Qd2+
{[%clk 0:00:13.8]} 74. Kg1 {[%clk 0:00:14.2]} 74... Qe1+ {[%clk 0:00:13.5]} 75.
Kg2 {[%clk 0:00:14.8]} 75... Bg6 {[%clk 0:00:08.8]} 76. Qd4 {[%clk 0:00:09.1]}
76... Qe2+ {[%clk 0:00:08.3]} 77. Kg3 {[%clk 0:00:09.9]} 77... Qe1+ {[%clk
0:00:09.1]} 78. Qf2 {[%clk 0:00:10.9]} 78... Qc3+ {[%clk 0:00:09.5]} 79. Qaf3
{[%clk 0:00:10.1]} 79... Qe5+ {[%clk 0:00:09.9]} 80. Qf4 {[%clk 0:00:11.2]}
80... Qc3+ {[%clk 0:00:11.1]} 81. Q4e3 {[%clk 0:00:12.2]} 81... Qc7+ {[%clk
0:00:11.4]} 82. Qff4 {[%clk 0:00:13.7]} 82... Qc8 {[%clk 0:00:07.9]} 83. Qh4+
{[%clk 0:00:14.4]} 83... Kg8 {[%clk 0:00:09.2]} 84. Qg4 {[%clk 0:00:15.5]} 84...
Qc7+ {[%clk 0:00:08.5]} 85. Qef4 {[%clk 0:00:15]} 85... Qc3+ {[%clk 0:00:09.4]}
86. Qgf3 {[%clk 0:00:16.3]} 86... Qc5 {[%clk 0:00:08.3]} 87. Q3e3 {[%clk
0:00:17]} 87... Qc8 {[%clk 0:00:06.6]} 88. Qfe5 {[%clk 0:00:16]} 88... Kh7
{[%clk 0:00:06.6]} 89. Qe6 {[%clk 0:00:12.3]} 89... Qc2 {[%clk 0:00:06.8]} 90.
Qh3+ {[%clk 0:00:12.5]} 90... Kg8 {[%clk 0:00:08.1]} 91. Qee6+ {[%clk
0:00:13.8]} 91... Bf7 {[%clk 0:00:07.5]} 92. Qc8+ {[%clk 0:00:14.7]} 92... Qxc8
{[%clk 0:00:07.6]} 93. Qxc8+ {[%clk 0:00:16.6]} 93... Kh7 {[%clk 0:00:09.5]} 94.
Kf4 {[%clk 0:00:18.1]} 94... Bg6 {[%clk 0:00:08.9]} 95. Kg5 {[%clk 0:00:19.3]}
95... Bf7 {[%clk 0:00:10.2]} 96. Qh3+ {[%clk 0:00:20]} 96... Kg8 {[%clk
0:00:10.8]} 97. Qf5 {[%clk 0:00:20.8]} 97... Kf8 {[%clk 0:00:07.2]} 98. Qh7
{[%clk 0:00:21.2]} 98... Bg8 {[%clk 0:00:06.4]} 99. Qh8 {[%clk 0:00:22.1]} 99...
Kf7 {[%clk 0:00:07.8]} 100. Kf5 {[%clk 0:00:23.6]} 100... g6+ {[%clk 0:00:05.6]}
101. Kg5 {[%clk 0:00:24.7]} 1-0

[Event "*** MasterClass Titled Tuesday Blitz"]
[Site "Chess.com"]
[Date "2017.10.03"]
[Round "1"]
[White "Indianlad"]
[Black "Andrjywa"]
[Result "1/2-1/2"]
[WhiteElo "2616"]
[BlackElo "2337"]
[TimeControl "180+2"]
[EndTime "13:14:02 PDT"]
[Termination "Game drawn by agreement"]

1. d4 {[%clk 0:02:59.8]} 1... Nf6 {[%clk 0:02:59.6]} 2. Nf3 {[%clk 0:03:01]}
2... e6 {[%clk 0:03:01.1]} 3. Bf4 {[%clk 0:03:01.4]} 3... b6 {[%clk 0:03:02.5]}
4. e3 {[%clk 0:03:01.6]} 4... Bb7 {[%clk 0:03:04]} 5. h3 {[%clk 0:03:03.1]} 5...
Be7 {[%clk 0:03:05.5]} 6. Bd3 {[%clk 0:03:04.4]} 6... O-O {[%clk 0:03:07]} 7.
O-O {[%clk 0:03:05.9]} 7... c5 {[%clk 0:03:08]} 8. a4 {[%clk 0:03:06.6]} 8...
cxd4 {[%clk 0:03:09]} 9. exd4 {[%clk 0:03:07.2]} 9... d6 {[%clk 0:03:10.4]} 10.
a5 {[%clk 0:03:07.3]} 10... Nbd7 {[%clk 0:03:08.4]} 11. Re1 {[%clk 0:03:06.5]}
11... bxa5 {[%clk 0:03:05.3]} 12. Nbd2 {[%clk 0:03:07.3]} 12... Nb6 {[%clk
0:03:05.9]} 13. Bh2 {[%clk 0:02:56.4]} 13... a4 {[%clk 0:03:06.3]} 14. c4 {[%clk
0:02:51.3]} 14... Rc8 {[%clk 0:03:05.5]} 15. b3 {[%clk 0:02:46.8]} 15... axb3
{[%clk 0:03:03.6]} 16. Qxb3 {[%clk 0:02:48.7]} 16... Ra8 {[%clk 0:02:52.2]} 17.
Rec1 {[%clk 0:02:47.9]} 17... Qd7 {[%clk 0:02:49.3]} 18. c5 {[%clk 0:02:44.7]}
18... dxc5 {[%clk 0:02:44.8]} 19. dxc5 {[%clk 0:02:46.6]} 19... Bd5 {[%clk
0:02:46.2]} 20. Qc2 {[%clk 0:02:46.2]} 20... Rac8 {[%clk 0:02:33.5]} 21. Ne5
{[%clk 0:02:43.4]} 21... Qb7 {[%clk 0:02:25]} 22. c6 {[%clk 0:02:43.5]} 22...
Qa8 {[%clk 0:02:26.2]} 23. Ne4 {[%clk 0:02:30.7]} 23... Nxe4 {[%clk 0:02:17.2]}
24. Bxe4 {[%clk 0:02:32.6]} 24... Bxe4 {[%clk 0:02:14.7]} 25. Qxe4 {[%clk
0:02:33.9]} 25... Nd5 {[%clk 0:02:16.2]} 26. Qa4 {[%clk 0:02:12.5]} 26... Bg5
{[%clk 0:01:44.8]} 27. Rc2 {[%clk 0:02:07.4]} 27... Bf6 {[%clk 0:01:08.1]} 28.
Qxa7 {[%clk 0:01:57]} 28... Qxa7 {[%clk 0:01:08.3]} 29. Rxa7 {[%clk 0:01:56.7]}
29... Bxe5 {[%clk 0:01:09.6]} 30. Bxe5 {[%clk 0:01:55]} 30... Nb4 {[%clk
0:01:11.1]} 31. Rc5 {[%clk 0:01:56.1]} 31... Nxc6 {[%clk 0:01:10]} 32. Rc7
{[%clk 0:01:52.2]} 32... Rxc7 {[%clk 0:01:08.5]} 33. Bxc7 {[%clk 0:01:53.6]}
33... Nb4 {[%clk 0:01:02.1]} 34. f4 {[%clk 0:01:39.6]} 34... Nd5 {[%clk
0:01:01]} 35. Bd6 {[%clk 0:01:36.8]} 35... Rd8 {[%clk 0:01:01.1]} 36. f5 {[%clk
0:01:34.5]} 36... h6 {[%clk 0:00:59.3]} 37. fxe6 {[%clk 0:01:32.1]} 37... fxe6
{[%clk 0:00:56.7]} 38. Be5 {[%clk 0:01:32.3]} 38... Rd7 {[%clk 0:00:54.9]} 39.
Rc8+ {[%clk 0:01:28.2]} 39... Kf7 {[%clk 0:00:56]} 40. Rc2 {[%clk 0:01:27.5]}
40... g5 {[%clk 0:00:52.4]} 41. g4 {[%clk 0:01:24.4]} 41... Kg6 {[%clk
0:00:53.7]} 42. Rc6 {[%clk 0:01:21.9]} 42... Kf7 {[%clk 0:00:53]} 43. Rc8 {[%clk
0:01:16]} 43... Ne7 {[%clk 0:00:47.5]} 44. Rh8 {[%clk 0:01:06.6]} 44... Kg6
{[%clk 0:00:48.2]} 45. Re8 {[%clk 0:01:02.3]} 45... Kf7 {[%clk 0:00:47.7]} 46.
Rh8 {[%clk 0:01:02.3]} 46... Kg6 {[%clk 0:00:47.8]} 47. Rf8 {[%clk 0:00:58.6]}
47... Nd5 {[%clk 0:00:40.3]} 48. Rg8+ {[%clk 0:00:58]} 48... Kh7 {[%clk
0:00:39.6]} 49. Re8 {[%clk 0:00:57.2]} 49... Re7 {[%clk 0:00:40.6]} 50. Rh8+
{[%clk 0:00:57.5]} 50... Kg6 {[%clk 0:00:41.1]} 51. Rg8+ {[%clk 0:00:58.8]}
51... Kh7 {[%clk 0:00:42.2]} 52. Rf8 {[%clk 0:00:59.8]} 52... Kg6 {[%clk
0:00:41.4]} 53. Kh2 {[%clk 0:00:47.5]} 53... Rf7 {[%clk 0:00:38.5]} 54. Rg8+
{[%clk 0:00:47.5]} 54... Kh7 {[%clk 0:00:39]} 55. Rh8+ {[%clk 0:00:48.5]} 55...
Kg6 {[%clk 0:00:39.7]} 56. Rg8+ {[%clk 0:00:50.4]} 56... Kh7 {[%clk 0:00:40.8]}
57. Re8 {[%clk 0:00:44.5]} 57... Nf4 {[%clk 0:00:40.5]} 58. Bxf4 {[%clk
0:00:30]} 58... Rxf4 {[%clk 0:00:40.8]} 59. Re7+ {[%clk 0:00:30.9]} 59... Kg6
{[%clk 0:00:40.8]} 60. Rxe6+ {[%clk 0:00:32]} 60... Rf6 {[%clk 0:00:42.4]} 61.
Re3 {[%clk 0:00:32.1]} 61... Rf7 {[%clk 0:00:42.9]} 62. Kg3 {[%clk 0:00:32.8]}
62... Rf6 {[%clk 0:00:44.4]} 63. h4 {[%clk 0:00:33]} 63... gxh4+ {[%clk
0:00:45.5]} 64. Kxh4 {[%clk 0:00:34.9]} 64... Rf7 {[%clk 0:00:46.5]} 65. Re6+
{[%clk 0:00:35.4]} 65... Rf6 {[%clk 0:00:47.5]} 66. Re8 {[%clk 0:00:36.9]} 66...
Rf4 {[%clk 0:00:45.7]} 67. Rg8+ {[%clk 0:00:37.2]} 67... Kh7 {[%clk 0:00:46.1]}
68. Ra8 {[%clk 0:00:39.1]} 68... Rb4 {[%clk 0:00:46.3]} 69. Ra7+ {[%clk
0:00:39]} 69... Kg6 {[%clk 0:00:47.7]} 70. Ra6+ {[%clk 0:00:39.9]} 70... Kh7
{[%clk 0:00:49.2]} 71. Rc6 {[%clk 0:00:41.1]} 71... Kg7 {[%clk 0:00:50]} 72. Rc5
{[%clk 0:00:41.4]} 72... Kg6 {[%clk 0:00:47.2]} 73. Ra5 {[%clk 0:00:42.7]} 73...
Rc4 {[%clk 0:00:47.4]} 74. Rb5 {[%clk 0:00:43.1]} 74... Ra4 {[%clk 0:00:48.1]}
75. Rc5 {[%clk 0:00:43.9]} 75... Rb4 {[%clk 0:00:48.8]} 76. Ra5 {[%clk
0:00:44.5]} 76... Rc4 {[%clk 0:00:49.1]} 77. Ra6+ {[%clk 0:00:45.8]} 77... Kg7
{[%clk 0:00:47.8]} 78. Rd6 {[%clk 0:00:47.7]} 78... Rb4 {[%clk 0:00:48.2]} 79.
Rd5 {[%clk 0:00:47.9]} 79... Ra4 {[%clk 0:00:48.7]} 80. Kh5 {[%clk 0:00:48.4]}
80... Ra1 {[%clk 0:00:40.6]} 81. Rd7+ {[%clk 0:00:48.9]} 81... Kf6 {[%clk
0:00:41.3]} 82. Rd6+ {[%clk 0:00:50.4]} 82... Kg7 {[%clk 0:00:38.3]} 83. Rg6+
{[%clk 0:00:51]} 83... Kf7 {[%clk 0:00:38.8]} 84. Kxh6 {[%clk 0:00:46.8]} 84...
Rh1+ {[%clk 0:00:26.6]} 85. Kg5 {[%clk 0:00:47.7]} 85... Rc1 {[%clk 0:00:26.8]}
86. Kh5 {[%clk 0:00:48.8]} 86... Rh1+ {[%clk 0:00:26.9]} 87. Kg5 {[%clk
0:00:49.9]} 87... Rc1 {[%clk 0:00:27.4]} 88. Rb6 {[%clk 0:00:51.3]} 88... Kg7
{[%clk 0:00:20.9]} 89. Rb7+ {[%clk 0:00:49.9]} 89... Kg8 {[%clk 0:00:22.2]} 90.
Rb6 {[%clk 0:00:46.7]} 90... Kg7 {[%clk 0:00:22.4]} 91. Rb7+ {[%clk 0:00:46.2]}
91... Kg8 {[%clk 0:00:23.2]} 92. Rd7 {[%clk 0:00:47.1]} 92... Rc6 {[%clk
0:00:23.1]} 93. Re7 {[%clk 0:00:46.5]} 93... Rb6 {[%clk 0:00:23.1]} 94. Kh5
{[%clk 0:00:47.1]} 94... Rc6 {[%clk 0:00:23.4]} 95. Rd7 {[%clk 0:00:45.6]} 95...
Rb6 {[%clk 0:00:24.5]} 96. Rd5 {[%clk 0:00:44.8]} 96... Kg7 {[%clk 0:00:24.5]}
97. g5 {[%clk 0:00:45.7]} 97... Ra6 {[%clk 0:00:24.9]} 98. g6 {[%clk 0:00:45.2]}
98... Ra1 {[%clk 0:00:20.3]} 99. Rd7+ {[%clk 0:00:45.5]} 99... Kg8 {[%clk
0:00:20.8]} 100. Rd8+ {[%clk 0:00:46.3]} 100... Kg7 {[%clk 0:00:21.4]} 101. Rd7+
{[%clk 0:00:48.2]} 101... Kg8 {[%clk 0:00:22.7]} 1/2-1/2

[Event "*** MasterClass Titled Tuesday Blitz"]
[Site "Chess.com"]
[Date "2017.10.03"]
[Round "2"]
[White "Vrolijk"]
[Black "Sven_Tica"]
[Result "0-1"]
[WhiteElo "2463"]
[BlackElo "2439"]
[TimeControl "180+2"]
[EndTime "13:18:02 PDT"]
[Termination "Sven_Tica won by resignation"]

1. d4 {[%clk 0:03:01.9]} 1... Nf6 {[%clk 0:02:57.2]} 2. c4 {[%clk 0:03:02]} 2...
e6 {[%clk 0:02:54.1]} 3. Nf3 {[%clk 0:03:03]} 3... b6 {[%clk 0:02:52.6]} 4. g3
{[%clk 0:03:02.7]} 4... Ba6 {[%clk 0:02:53.6]} 5. b3 {[%clk 0:03:02.4]} 5...
Bb4+ {[%clk 0:02:54.5]} 6. Bd2 {[%clk 0:03:03.8]} 6... Be7 {[%clk 0:02:55.9]} 7.
Bg2 {[%clk 0:03:03.4]} 7... c6 {[%clk 0:02:57.3]} 8. O-O {[%clk 0:03:01.2]} 8...
O-O {[%clk 0:02:56.8]} 9. Nc3 {[%clk 0:03:01.4]} 9... d5 {[%clk 0:02:58]} 10.
Ne5 {[%clk 0:02:58]} 10... Nfd7 {[%clk 0:02:58.5]} 11. Nxd7 {[%clk 0:02:50.7]}
11... Nxd7 {[%clk 0:02:59.4]} 12. cxd5 {[%clk 0:02:49.8]} 12... cxd5 {[%clk
0:03:00.2]} 13. Bc1 {[%clk 0:02:48.1]} 13... Rc8 {[%clk 0:02:58.4]} 14. Bb2
{[%clk 0:02:49.6]} 14... Bb4 {[%clk 0:02:55.3]} 15. Rc1 {[%clk 0:02:50.9]} 15...
Qe7 {[%clk 0:02:56.1]} 16. Qd2 {[%clk 0:02:49.6]} 16... Nf6 {[%clk 0:02:44.5]}
17. Qe3 {[%clk 0:02:49.3]} 17... Rc7 {[%clk 0:02:41.6]} 18. Rc2 {[%clk
0:02:46.5]} 18... Rfc8 {[%clk 0:02:41.8]} 19. Rfc1 {[%clk 0:02:48]} 19... Ba3
{[%clk 0:02:30.9]} 20. Bxa3 {[%clk 0:02:36.2]} 20... Qxa3 {[%clk 0:02:30.7]} 21.
Nb5 {[%clk 0:02:27.9]} 21... Qxc1+ {[%clk 0:02:23.6]} 0-1

[Event "*** MasterClass Titled Tuesday Blitz"]
[Site "Chess.com"]
[Date "2017.10.03"]
[Round "2"]
[White "TheFlaminGM"]
[Black "Blitzstream"]
[Result "0-1"]
[WhiteElo "2576"]
[BlackElo "2497"]
[TimeControl "180+2"]
[EndTime "13:18:29 PDT"]
[Termination "Blitzstream won by resignation"]

1. e4 {[%clk 0:03:01.6]} 1... d5 {[%clk 0:03:00.8]} 2. exd5 {[%clk 0:03:02]}
2... Qxd5 {[%clk 0:03:02.7]} 3. Nf3 {[%clk 0:03:03.6]} 3... Bg4 {[%clk
0:03:03.1]} 4. Be2 {[%clk 0:03:04.7]} 4... Nc6 {[%clk 0:03:04.3]} 5. h3 {[%clk
0:03:06.4]} 5... Bxf3 {[%clk 0:03:04.8]} 6. Bxf3 {[%clk 0:03:08.3]} 6... Qd7
{[%clk 0:03:06.6]} 7. d4 {[%clk 0:03:05.6]} 7... O-O-O {[%clk 0:03:06.9]} 8. c3
{[%clk 0:03:05.6]} 8... e5 {[%clk 0:03:07.8]} 9. dxe5 {[%clk 0:02:48.4]} 9...
Qxd1+ {[%clk 0:03:03.2]} 10. Bxd1 {[%clk 0:02:49.2]} 10... Nxe5 {[%clk
0:03:05.1]} 11. O-O {[%clk 0:02:50.3]} 11... Nd3 {[%clk 0:03:03.8]} 12. Bc2
{[%clk 0:02:28.1]} 12... Nxc1 {[%clk 0:02:59.6]} 13. Rxc1 {[%clk 0:02:30]} 13...
Nf6 {[%clk 0:02:56.7]} 14. Bb3 {[%clk 0:02:30.6]} 14... Bc5 {[%clk 0:02:45.1]}
15. Na3 {[%clk 0:02:24.6]} 15... Ne4 {[%clk 0:02:41.3]} 16. Rc2 {[%clk
0:02:23.1]} 16... Nxf2 {[%clk 0:02:19]} 17. Rxf2 {[%clk 0:02:21.1]} 17... Rd2
{[%clk 0:02:19.6]} 18. Rf1 {[%clk 0:02:22.7]} 18... Re8 {[%clk 0:02:04.2]} 19.
Nc4 {[%clk 0:02:12.3]} 19... Rxf2 {[%clk 0:01:59.7]} 0-1